bitfinex-derivatives/quotes_SOLF0:USTF0_20251026
["timestamp","ask_amount","ask_price","bid_price","bid_amount"]
[1761451057202,3.90252688,192.89,192.82,2.87]
[1761451057402,3.90252688,192.88,192.82,2.87]
[1761451057698,1.51384714,192.91,192.82,2.87]
[1761451057903,3.90267168,192.9,192.82,2.87]
[1761451058103,3.90267168,192.89,192.82,2.87]
[1761451058299,3.90267168,192.88,192.82,2.87]
[1761451058513,1.51384714,192.91,192.82,2.87]
[1761451058714,3.90546657,192.9,192.82,2.87]
[1761451059011,3.90546657,192.89,192.82,2.87]
[1761451059212,3.90546657,192.88,192.82,2.87]
[1761451059411,1.51384714,192.91,192.82,2.87]
[1761451059710,3.90556195,192.9,192.82,2.87]
[1761451059905,3.90556195,192.89,192.82,2.87]
[1761451060113,3.90556195,192.88,192.82,2.87]
[1761451060411,1.51384714,192.91,192.82,2.87]
[1761451060611,3.90565571,192.9,192.82,2.87]
[1761451060812,3.90565571,192.89,192.82,2.87]
[1761451061008,3.90565571,192.88,192.82,2.87]
[1761451061212,1.51384714,192.91,192.82,2.87]
[1761451061400,3.90566095,192.9,192.82,2.87]
[1761451061604,3.90566095,192.89,192.82,2.87]
[1761451061806,3.90566095,192.88,192.82,2.87]
[1761451062002,1.51384714,192.91,192.82,2.87]
[1761451062302,3.90566095,192.9,192.82,2.87]
[1761451062503,3.90566095,192.89,192.82,2.87]
[1761451062814,3.90566095,192.88,192.82,2.87]
[1761451063013,3.90566095,192.87,192.82,2.87]
[1761451063215,6.36381172,192.91,192.82,2.87]
[1761451063515,3.90588929,192.9,192.82,2.87]
[1761451063815,3.90588929,192.89,192.82,2.87]
[1761451064117,3.90588929,192.88,192.82,2.87]
[1761451064314,3.90588929,192.87,192.82,2.87]
[1761451064611,3.90588929,192.86,192.82,2.87]
[1761451064812,1.51384714,192.88,192.82,2.87]
[1761451065016,3.90594109,192.87,192.82,2.87]
[1761451065217,3.90594109,192.86,192.82,2.87]
[1761451065419,1.51384714,192.88,192.82,2.87]
[1761451065617,3.90564024,192.87,192.82,2.87]
[1761451065818,3.90564024,192.86,192.82,2.87]
[1761451066118,1.51384714,192.88,192.82,2.87]
[1761451066321,3.90564024,192.87,192.82,2.87]
[1761451066520,3.90564024,192.86,192.82,2.87]
[1761451066715,1.51384714,192.88,192.82,2.87]
[1761451066922,3.90541902,192.87,192.82,2.87]
[1761451067221,3.90541902,192.86,192.82,2.87]
[1761451067418,1.51384714,192.88,192.82,2.87]
[1761451067619,3.90541954,192.87,192.82,2.87]
[1761451067819,3.90541954,192.86,192.82,2.87]
[1761451068022,1.51384714,192.88,192.82,2.87]
[1761451068216,3.90541954,192.87,192.82,2.87]
[1761451068417,3.90541954,192.86,192.82,2.87]
[1761451068622,1.51384714,192.88,192.82,2.87]
[1761451068922,3.90542006,192.87,192.82,2.87]
[1761451069216,3.90542006,192.86,192.82,2.87]
[1761451069416,1.51384714,192.88,192.82,2.87]
[1761451069623,3.90538834,192.87,192.82,2.87]
[1761451069812,3.90538834,192.86,192.82,2.87]
[1761451070018,1.51384714,192.88,192.82,2.87]
[1761451070210,3.90538834,192.87,192.82,2.87]
[1761451070412,3.90538834,192.86,192.82,2.87]
[1761451070611,1.51384714,192.88,192.82,2.87]
[1761451070823,3.90542482,192.87,192.82,2.87]
[1761451071122,1.51384714,192.88,192.82,2.87]
[1761451071123,3.90542482,192.86,192.82,2.87]
[1761451071422,1.51384714,192.88,192.82,2.87]
[1761451071614,3.90542447,192.87,192.82,2.87]
[1761451071814,3.90542447,192.86,192.82,2.87]
[1761451072019,1.51384714,192.88,192.82,2.87]
[1761451072224,3.90542447,192.87,192.82,2.87]
[1761451072424,3.90542447,192.86,192.82,2.87]
[1761451072725,6.36381172,192.91,192.82,2.87]
[1761451072927,3.90531788,192.9,192.82,2.87]
[1761451073126,3.90531788,192.89,192.82,2.87]
[1761451073326,3.90531788,192.88,192.82,2.87]
[1761451073526,3.90531788,192.87,192.82,2.87]
[1761451073825,6.36381172,192.91,192.82,2.87]
[1761451074029,3.90516526,192.9,192.82,2.87]
[1761451074228,3.90516526,192.89,192.82,2.87]
[1761451074422,3.90516526,192.88,192.82,2.87]
[1761451074625,3.90516526,192.87,192.82,2.87]
[1761451074833,1.51384714,192.91,192.82,2.87]
[1761451075031,3.90514181,192.9,192.82,2.87]
[1761451075332,3.90514181,192.89,192.82,2.87]
[1761451075533,3.90514181,192.88,192.82,2.87]
[1761451075828,1.51384714,192.91,192.82,2.87]
[1761451076030,3.90513747,192.9,192.82,2.87]
[1761451076229,3.90513747,192.89,192.82,2.87]
[1761451076430,3.90513747,192.88,192.82,2.87]
[1761451076629,1.51384714,192.91,192.82,2.87]
[1761451076930,3.90533755,192.9,192.82,2.87]
[1761451077129,3.90533755,192.89,192.82,2.87]
[1761451077318,3.90533755,192.88,192.82,2.87]
[1761451077524,1.51384714,192.91,192.82,2.87]
[1761451077724,3.90535285,192.9,192.82,2.87]
[1761451077925,3.90535285,192.89,192.82,2.87]
[1761451078232,3.90535285,192.88,192.82,2.87]
[1761451078533,1.51384714,192.91,192.82,2.87]
[1761451078828,3.90531257,192.9,192.82,2.87]
[1761451079133,3.90531257,192.89,192.82,2.87]
[1761451079331,3.90531257,192.88,192.82,2.87]
[1761451079531,1.51384714,192.91,192.82,2.87]
[1761451079735,3.90538218,192.9,192.82,2.87]
[1761451079938,3.90538218,192.89,192.82,2.87]
[1761451080236,3.90538218,192.88,192.82,2.87]
[1761451080437,1.51384714,192.91,192.82,2.87]
[1761451080736,3.90525599,192.9,192.82,2.87]
[1761451080927,3.90525599,192.89,192.82,2.87]
[1761451081127,3.90525599,192.88,192.82,2.87]
[1761451081328,1.51384714,192.91,192.82,2.87]
[1761451081537,3.90528048,192.9,192.82,2.87]
[1761451081743,3.90528048,192.89,192.82,2.87]
[1761451081945,3.90528048,192.88,192.82,2.87]
[1761451082234,1.51384714,192.91,192.82,2.87]
[1761451082435,3.90519859,192.9,192.82,2.87]
[1761451082629,3.90519859,192.89,192.82,2.87]
[1761451082832,3.90519859,192.88,192.82,2.87]
[1761451083031,1.51384714,192.91,192.82,2.87]
[1761451083231,3.90519923,192.9,192.82,2.87]
[1761451083435,3.90519923,192.89,192.82,2.87]
[1761451083635,3.90519923,192.88,192.82,2.87]
[1761451083836,1.51384714,192.91,192.82,2.87]
[1761451084038,3.905174,192.9,192.82,2.87]
[1761451084338,3.905174,192.89,192.82,2.87]
[1761451084531,3.905174,192.88,192.82,2.87]
[1761451084732,1.51384714,192.91,192.82,2.87]
[1761451085031,3.90525487,192.9,192.82,2.87]
[1761451085230,3.90525487,192.89,192.82,2.87]
[1761451085427,3.90525487,192.88,192.82,2.87]
[1761451085629,1.51384714,192.91,192.82,2.87]
[1761451085837,3.90534476,192.9,192.82,2.87]
[1761451086033,3.90534476,192.89,192.82,2.87]
[1761451086233,1.51384714,192.91,192.82,2.87]
[1761451086234,3.90534476,192.88,192.82,2.87]
[1761451086434,1.51384714,192.91,192.82,2.87]
[1761451086630,3.90531677,192.9,192.82,2.87]
[1761451086837,3.90531677,192.89,192.82,2.87]
[1761451087039,3.90531677,192.88,192.82,2.87]
[1761451087338,1.51384714,192.91,192.82,2.87]
[1761451087539,3.90540886,192.9,192.82,2.87]
[1761451087737,3.90540886,192.89,192.82,2.87]
[1761451087939,3.90540886,192.88,192.82,2.87]
[1761451088138,1.51384714,192.91,192.82,2.87]
[1761451088339,3.90529886,192.9,192.82,2.87]
[1761451088538,3.90529886,192.89,192.82,2.87]
[1761451088738,3.90529886,192.88,192.82,2.87]
[1761451088938,1.51384714,192.91,192.82,2.87]
[1761451089139,3.90681576,192.9,192.82,2.87]
[1761451089342,3.90681576,192.89,192.82,2.87]
[1761451089635,3.90681576,192.88,192.82,2.87]
[1761451089842,1.51384714,192.91,192.82,2.87]
[1761451090041,3.90691563,192.9,192.82,2.87]
[1761451090241,3.90691563,192.89,192.82,2.87]
[1761451090441,3.90691563,192.88,192.82,2.87]
[1761451090634,1.51384714,192.91,192.82,2.87]
[1761451090831,3.90699004,192.9,192.82,2.87]
[1761451091035,1.51384714,192.91,192.82,2.87]
[1761451091036,3.90699004,192.89,192.82,2.87]
[1761451091236,3.90699004,192.88,192.82,2.87]
[1761451091437,1.51384714,192.91,192.82,2.87]
[1761451091633,3.90688012,192.9,192.82,2.87]
[1761451091833,3.90688012,192.89,192.82,2.87]
[1761451092139,3.90688012,192.88,192.82,4.38384714]
[1761451092343,1.51384714,192.91,192.83,2.82]
[1761451092547,3.90678456,192.9,192.83,2.82]
[1761451092843,3.90678456,192.89,192.83,2.82]
[1761451093049,3.90678456,192.88,192.83,2.82]
[1761451093241,1.51384714,192.91,192.83,2.82]
[1761451093441,3.90674452,192.9,192.83,2.82]
[1761451093644,3.90674452,192.89,192.83,2.82]
[1761451093843,3.90674452,192.88,192.83,2.82]
[1761451094049,1.51384714,192.91,192.83,2.82]
[1761451094251,3.90674452,192.9,192.83,2.82]
[1761451094547,3.90674452,192.89,192.83,2.82]
[1761451094748,3.90674452,192.88,192.83,2.82]
[1761451094948,1.51384714,192.91,192.83,2.82]
[1761451095149,3.90670703,192.9,192.83,2.82]
[1761451095347,3.90670703,192.89,192.83,2.82]
[1761451095548,3.90670703,192.88,192.83,2.82]
[1761451095750,1.51384714,192.91,192.83,2.82]
[1761451095951,3.90667147,192.9,192.83,2.82]
[1761451096145,3.90667147,192.89,192.83,2.82]
[1761451096342,3.90667147,192.88,192.83,2.82]
[1761451096548,4.84996458,192.93,192.83,2.82]
[1761451096852,5.42046292,192.92,192.83,2.82]
[1761451097050,3.90661578,192.91,192.83,2.82]
[1761451097252,3.90661578,192.9,192.83,2.82]
[1761451097451,3.90661578,192.89,192.83,2.82]
[1761451097657,1.51384714,192.92,192.83,2.82]
[1761451097860,3.90629905,192.91,192.83,2.82]
[1761451098157,3.90629905,192.9,192.83,2.82]
[1761451098354,3.90629905,192.89,192.83,2.82]
[1761451098545,1.51384714,192.92,192.83,2.82]
[1761451098744,3.90606254,192.91,192.83,2.82]
[1761451098945,3.90606254,192.9,192.83,2.82]
[1761451099158,3.90606254,192.89,192.83,2.82]
[1761451099356,1.51384714,192.92,192.83,2.82]
[1761451099556,3.90585895,192.91,192.83,2.82]
[1761451099857,3.90585895,192.9,192.83,2.82]
[1761451100056,3.90585895,192.89,192.83,2.82]
[1761451100254,1.51384714,192.92,192.83,2.82]
[1761451100455,3.90565909,192.91,192.83,2.82]
[1761451100655,3.90565909,192.9,192.83,2.82]
[1761451100854,3.90565909,192.89,192.83,2.82]
[1761451101155,1.51384714,192.92,192.83,2.82]
[1761451101359,3.90565909,192.91,192.83,2.82]
[1761451101554,3.90565909,192.9,192.83,2.82]
[1761451101754,3.90565909,192.89,192.83,2.82]
[1761451101954,1.51384714,192.92,192.83,2.82]
[1761451102247,3.90546903,192.91,192.83,2.82]
[1761451102454,1.51384714,192.92,192.83,2.82]
[1761451102455,3.90546903,192.9,192.83,2.82]
[1761451102654,3.90546903,192.89,192.83,2.82]
[1761451102856,1.51384714,192.92,192.83,2.82]
[1761451103059,3.90534883,192.91,192.83,2.82]
[1761451103257,3.90534883,192.9,192.83,2.82]
[1761451103458,1.51384714,192.92,192.83,2.82]
[1761451103660,3.90516893,192.91,192.83,2.82]
[1761451103961,3.90516893,192.9,192.83,2.82]
[1761451104161,3.90522392,192.89,192.83,2.82]
[1761451104358,1.51384714,192.92,192.83,2.82]
[1761451104558,3.90526587,192.91,192.83,2.82]
[1761451104758,3.90526587,192.9,192.83,2.82]
[1761451104958,3.90526587,192.89,192.83,2.82]
[1761451105257,1.51384714,192.92,192.83,2.82]
[1761451105458,3.90511127,192.91,192.83,2.82]
[1761451105657,3.90511127,192.9,192.83,2.82]
[1761451105859,3.90511127,192.89,192.83,2.82]
[1761451106059,1.51384714,192.92,192.83,2.82]
[1761451106259,3.90503112,192.91,192.83,2.82]
[1761451106459,3.90503112,192.9,192.83,2.82]
[1761451106658,3.90503112,192.89,192.83,2.82]
[1761451106859,1.51384714,192.92,192.83,2.82]
[1761451107060,3.90500339,192.91,192.83,2.82]
[1761451107359,3.90500339,192.9,192.83,2.82]
[1761451107559,3.90500339,192.89,192.83,2.82]
[1761451107858,1.51384714,192.92,192.83,2.82]
[1761451108054,3.90492353,192.91,192.83,2.82]
[1761451108254,3.90492353,192.9,192.83,2.82]
[1761451108563,3.90492353,192.89,192.83,2.82]
[1761451108762,1.51384714,192.92,192.83,2.82]
[1761451108957,3.90494431,192.91,192.83,2.82]
[1761451109157,3.90494431,192.9,192.83,2.82]
[1761451109461,3.90494431,192.89,192.83,2.82]
[1761451109657,1.51384714,192.92,192.83,2.82]
[1761451109959,3.90500249,192.91,192.83,2.82]
[1761451110163,3.90500249,192.9,192.83,2.82]
[1761451110360,3.90500249,192.89,192.83,2.82]
[1761451110562,1.51384714,192.92,192.83,2.82]
[1761451110765,3.90522914,192.91,192.83,2.82]
[1761451111066,3.90522914,192.9,192.83,2.82]
[1761451111255,3.90522914,192.89,192.83,2.82]
[1761451111454,4.84996458,192.94,192.83,2.82]
[1761451111662,3.905477,192.93,192.83,2.82]
[1761451111862,3.905477,192.92,192.83,2.82]
[1761451112062,3.905477,192.91,192.83,2.82]
[1761451112262,3.905477,192.9,192.83,2.82]
[1761451112461,3.905477,192.89,192.83,2.82]
[1761451112662,4.84996458,192.94,192.83,2.82]
[1761451112862,3.90562643,192.93,192.83,2.82]
[1761451113062,3.90562643,192.92,192.83,2.82]
[1761451113266,3.90562643,192.91,192.83,2.82]
[1761451113464,3.90562643,192.9,192.83,2.82]
[1761451113665,3.90562643,192.89,192.83,2.82]
[1761451113865,4.84996458,192.94,192.83,2.82]
[1761451114067,3.90581051,192.93,192.83,2.82]
[1761451114363,3.90581051,192.92,192.83,2.82]
[1761451114565,3.90581051,192.91,192.83,2.82]
[1761451114765,3.90581051,192.9,192.83,2.82]
[1761451114963,3.90581051,192.89,192.83,2.82]
[1761451115163,4.84996458,192.94,192.83,2.82]
[1761451115364,3.90603344,192.93,192.83,2.82]
[1761451115562,3.90603344,192.92,192.83,2.82]
[1761451115763,3.90603344,192.91,192.83,2.82]
[1761451115962,3.90603344,192.9,192.83,2.82]
[1761451116167,3.90603344,192.89,192.83,2.82]
[1761451116361,4.84996458,192.94,192.83,2.82]
[1761451116659,3.90662823,192.93,192.83,2.82]
[1761451116858,3.90662823,192.92,192.83,2.82]
[1761451117063,3.90662823,192.91,192.83,2.82]
[1761451117262,3.90662823,192.9,192.83,2.82]
[1761451117564,3.90662823,192.89,192.83,2.82]
[1761451117858,4.84996458,192.93,192.83,2.82]
[1761451118065,3.90704214,192.92,192.83,2.82]
[1761451118259,3.90704214,192.91,192.83,2.82]
[1761451118462,3.90704214,192.9,192.83,2.82]
[1761451118664,3.90704214,192.89,192.83,2.82]
[1761451118961,4.84996458,192.93,192.83,2.82]
[1761451119161,3.90221571,192.92,192.83,2.82]
[1761451119367,3.90221571,192.91,192.83,2.82]
[1761451119557,3.90221571,192.9,192.83,2.82]
[1761451119755,3.90221571,192.89,192.83,2.82]
[1761451119956,4.84996458,192.93,192.83,2.82]
[1761451120158,3.9023456,192.92,192.83,2.82]
[1761451120359,3.9023456,192.91,192.83,2.82]
[1761451120556,3.9023456,192.9,192.83,2.82]
[1761451120856,3.9023456,192.89,192.83,2.82]
[1761451121059,4.84996458,192.93,192.83,2.82]
[1761451121256,3.90245562,192.92,192.83,2.82]
[1761451121460,3.90245562,192.91,192.83,2.82]
[1761451121661,3.90245562,192.9,192.83,2.82]
[1761451121866,3.90245562,192.89,192.83,2.82]
[1761451122066,4.84996458,192.93,192.83,2.82]
[1761451122268,3.90251941,192.92,192.83,2.82]
[1761451122469,3.90251941,192.91,192.83,2.82]
[1761451122766,3.90251941,192.9,192.83,2.82]
[1761451122964,3.90251941,192.89,192.83,2.82]
[1761451123166,4.84996458,192.93,192.83,2.82]
[1761451123465,3.90256635,192.92,192.83,2.82]
[1761451123665,3.90256635,192.91,192.83,2.82]
[1761451123860,3.90256635,192.9,192.83,2.82]
[1761451124061,3.90256635,192.89,192.83,2.82]
[1761451124269,4.84996458,192.93,192.83,2.82]
[1761451124462,3.90269226,192.92,192.83,2.82]
[1761451124762,3.90269226,192.91,192.83,2.82]
[1761451124966,3.90269226,192.9,192.83,2.82]
[1761451125160,3.90269226,192.89,192.83,2.82]
[1761451125360,4.84996458,192.93,192.83,2.82]
[1761451125558,3.90270252,192.92,192.83,2.82]
[1761451125761,3.90270252,192.91,192.83,2.82]
[1761451125961,3.90270252,192.9,192.83,2.82]
[1761451126159,3.90270252,192.89,192.83,2.82]
[1761451126365,4.84996458,192.93,192.83,2.82]
[1761451126567,3.90271388,192.92,192.83,2.82]
[1761451126767,3.90271388,192.91,192.83,2.82]
[1761451126968,3.90271388,192.9,192.83,2.82]
[1761451127162,3.90271388,192.89,192.83,2.82]
[1761451127362,4.84996458,192.93,192.83,2.82]
[1761451127566,3.9028394,192.92,192.83,2.82]
[1761451127767,3.9028394,192.91,192.83,2.82]
[1761451127974,3.9028394,192.9,192.83,2.82]
[1761451128170,3.9028394,192.89,192.83,2.82]
[1761451128370,4.84996458,192.93,192.83,2.82]
[1761451128573,3.90289269,192.92,192.83,2.82]
[1761451128771,3.90289269,192.91,192.83,2.82]
[1761451128971,3.90289269,192.9,192.83,2.82]
[1761451129172,3.90289269,192.89,192.83,2.82]
[1761451129373,4.84996458,192.93,192.83,2.82]
[1761451129674,3.90298616,192.92,192.83,2.82]
[1761451129870,3.90298616,192.91,192.83,2.82]
[1761451130169,3.90298616,192.9,192.83,2.82]
[1761451130474,3.90298616,192.89,192.83,2.82]
[1761451130669,4.84996458,192.93,192.83,2.82]
[1761451130870,3.90313822,192.92,192.83,2.82]
[1761451131172,3.90313822,192.91,192.83,2.82]
[1761451131368,3.90313822,192.9,192.83,2.82]
[1761451131569,3.90313822,192.89,192.83,2.82]
[1761451131769,4.84996458,192.93,192.83,2.82]
[1761451131974,3.90326504,192.92,192.83,2.82]
[1761451132272,3.90326504,192.91,192.83,2.82]
[1761451132471,3.90326504,192.9,192.83,2.82]
[1761451132671,3.90326504,192.89,192.83,2.82]
[1761451132872,4.84996458,192.93,192.83,2.82]
[1761451133076,3.90346102,192.92,192.83,2.82]
[1761451133274,3.90346102,192.91,192.83,2.82]
[1761451133574,3.90346102,192.9,192.83,2.82]
[1761451133776,3.90346102,192.89,192.83,2.82]
[1761451133977,4.84996458,192.93,192.83,2.82]
[1761451134173,3.90358317,192.92,192.83,2.82]
[1761451134375,3.90358317,192.91,192.83,2.82]
[1761451134573,3.90358317,192.9,192.83,2.82]
[1761451134873,3.90358317,192.89,192.83,2.82]
[1761451135073,4.84996458,192.93,192.83,2.82]
[1761451135273,3.90372003,192.92,192.83,2.82]
[1761451135473,3.90372003,192.91,192.83,2.82]
[1761451135673,3.90372003,192.9,192.83,2.82]
[1761451135876,3.90372003,192.89,192.83,2.82]
[1761451136075,4.84996458,192.93,192.83,2.82]
[1761451136268,3.90365722,192.92,192.83,2.82]
[1761451136476,3.90365722,192.91,192.83,2.82]
[1761451136679,3.90365722,192.9,192.83,2.82]
[1761451136873,4.84996458,192.94,192.84,2.63]
[1761451137071,3.90363188,192.93,192.84,2.63]
[1761451137267,3.90363188,192.92,192.84,2.63]
[1761451137475,4.84996458,192.96,192.84,2.63]
[1761451137676,3.90227764,192.95,192.84,2.63]
[1761451137873,3.90227764,192.94,192.84,2.63]
[1761451138075,3.90227764,192.93,192.85,2.63]
[1761451138271,4.84996458,192.96,192.85,2.63]
[1761451138272,3.90227764,192.92,192.85,2.63]
[1761451138475,4.84996458,192.97,192.85,2.63]
[1761451138677,3.90135216,192.96,192.86,2.63]
[1761451138981,3.90135216,192.95,192.86,2.63]
[1761451139175,3.90135216,192.94,192.86,2.63]
[1761451139377,3.90135216,192.93,192.86,2.63]
[1761451139675,4.84996458,192.97,192.86,2.63]
[1761451139876,3.90048051,192.96,192.86,2.63]
[1761451140077,3.90048051,192.95,192.86,2.63]
[1761451140278,3.90048051,192.94,192.86,2.63]
[1761451140581,3.90048051,192.93,192.86,2.63]
[1761451140782,4.84996458,192.97,192.86,2.63]
[1761451141082,3.90053968,192.96,192.86,2.63]
[1761451141382,3.90053968,192.95,192.86,2.63]
[1761451141683,3.90053968,192.94,192.86,2.63]
[1761451141873,3.90053968,192.93,192.86,2.63]
[1761451142076,4.84996458,192.97,192.86,2.63]
[1761451142276,3.89993938,192.96,192.86,2.63]
[1761451142578,3.89993938,192.95,192.86,2.63]
[1761451142779,3.89993938,192.94,192.86,2.63]
[1761451143083,4.84996458,192.98,192.86,2.63]
[1761451143084,3.89993938,192.93,192.86,2.63]
[1761451143379,4.84996458,192.98,192.86,2.63]
[1761451143583,3.89847133,192.97,192.86,2.63]
[1761451143775,3.89847133,192.96,192.86,2.63]
[1761451143975,3.89847133,192.95,192.86,2.63]
[1761451144180,3.89847133,192.94,192.86,2.63]
[1761451144376,4.84996458,192.98,192.86,2.63]
[1761451144580,3.89780848,192.97,192.86,2.63]
[1761451144775,3.89780848,192.96,192.86,2.63]
[1761451144976,3.89780848,192.95,192.86,2.63]
[1761451145178,3.89780848,192.94,192.86,2.63]
[1761451145377,3.89780848,192.93,192.83,2.86]
[1761451145579,3.89780848,192.92,192.83,2.86]
[1761451145884,3.89780848,192.91,192.83,2.86]
[1761451146082,2.3649831,192.93,192.83,2.86]
[1761451146276,3.89807807,192.92,192.83,2.86]
[1761451146477,3.89807807,192.91,192.83,2.86]
[1761451146677,3.89807807,192.9,192.83,2.86]
[1761451146879,2.3649831,192.93,192.83,2.86]
[1761451147181,3.89830023,192.92,192.83,2.86]
[1761451147379,3.89830023,192.91,192.83,2.86]
[1761451147580,3.89830023,192.9,192.83,2.86]
[1761451147781,2.3649831,192.93,192.83,2.86]
[1761451147977,3.89819039,192.92,192.83,2.86]
[1761451148178,2.3649831,192.93,192.83,2.86]
[1761451148179,3.89819039,192.91,192.83,2.86]
[1761451148379,3.89819039,192.9,192.83,2.86]
[1761451148586,2.3649831,192.93,192.83,2.86]
[1761451148786,3.89605462,192.92,192.83,2.86]
[1761451148984,3.89605462,192.91,192.83,2.86]
[1761451149183,3.89605462,192.9,192.83,7.5268]
[1761451149480,2.3649831,192.93,192.84,2.68]
[1761451149686,3.8959677,192.92,192.84,2.68]
[1761451149882,2.3649831,192.93,192.84,2.68]
[1761451150085,3.89591564,192.92,192.84,2.68]
[1761451150283,2.3649831,192.93,192.84,2.68]
[1761451150474,3.89593015,192.92,192.84,2.68]
[1761451150680,2.3649831,192.93,192.84,2.68]
[1761451150879,3.89598499,192.92,192.84,2.68]
[1761451151179,3.89598499,192.91,192.84,2.68]
[1761451151484,2.3649831,192.93,192.84,2.68]
[1761451151684,3.89599981,192.92,192.84,2.68]
[1761451151885,2.3649831,192.93,192.84,2.68]
[1761451152086,3.89594496,192.92,192.84,2.68]
[1761451152286,3.89594496,192.91,192.84,2.68]
[1761451152477,2.3649831,192.93,192.84,2.68]
[1761451152678,3.89591251,192.92,192.84,2.68]
[1761451152884,2.3649831,192.93,192.84,2.68]
[1761451153086,3.89596735,192.92,192.84,2.68]
[1761451153286,2.3649831,192.93,192.84,2.68]
[1761451153485,3.89600332,192.92,192.84,2.68]
[1761451153676,3.89605816,192.91,192.84,2.68]
[1761451153878,2.3649831,192.93,192.84,2.68]
[1761451154081,3.89616919,192.92,192.84,2.68]
[1761451154277,3.89616919,192.91,192.84,2.68]
[1761451154484,3.89616919,192.9,192.84,2.68]
[1761451154688,2.3649831,192.93,192.84,2.68]
[1761451154890,3.89635709,192.92,192.84,2.68]
[1761451155083,3.89635709,192.91,192.84,2.68]
[1761451155287,3.89635709,192.9,192.84,2.68]
[1761451155487,2.3649831,192.93,192.84,2.68]
[1761451155688,3.89641466,192.92,192.84,2.68]
[1761451155889,3.89641466,192.91,192.84,2.68]
[1761451156089,3.89641466,192.9,192.84,2.68]
[1761451156389,2.3649831,192.93,192.84,2.68]
[1761451156592,3.89639159,192.92,192.84,2.68]
[1761451156790,3.89639159,192.91,192.84,2.68]
[1761451157089,3.89639159,192.9,192.84,2.68]
[1761451157290,2.3649831,192.93,192.84,2.68]
[1761451157490,3.89642671,192.92,192.84,2.68]
[1761451157690,3.89642671,192.91,192.84,2.68]
[1761451157989,3.89642671,192.9,192.84,2.68]
[1761451158190,2.3649831,192.93,192.84,2.68]
[1761451158491,3.89651061,192.92,192.84,2.68]
[1761451158689,3.89651061,192.91,192.84,2.68]
[1761451158891,2.3649831,192.93,192.84,2.68]
[1761451159092,3.89640749,192.92,192.84,2.68]
[1761451159290,3.89640749,192.91,192.84,2.68]
[1761451159491,2.3649831,192.93,192.84,2.68]
[1761451159692,3.89644603,192.92,192.84,2.68]
[1761451159991,3.89644603,192.91,192.84,2.68]
[1761451160194,2.3649831,192.93,192.84,2.68]
[1761451160493,3.8965317,192.92,192.84,2.68]
[1761451160692,3.8965317,192.91,192.84,2.68]
[1761451160891,2.3649831,192.93,192.84,2.68]
[1761451161091,3.89648606,192.92,192.84,2.68]
[1761451161296,3.89648606,192.91,192.84,2.68]
[1761451161596,2.3649831,192.93,192.84,2.68]
[1761451161795,3.89652941,192.92,192.84,2.68]
[1761451161984,3.89652941,192.91,192.84,2.68]
[1761451162184,2.3649831,192.93,192.84,2.68]
[1761451162389,3.89661355,192.92,192.84,2.68]
[1761451162585,3.89661355,192.91,192.84,2.68]
[1761451162785,2.3649831,192.93,192.84,2.68]
[1761451162997,3.89659153,192.92,192.84,2.68]
[1761451163197,3.89659153,192.91,192.84,2.68]
[1761451163496,3.89669341,192.9,192.84,2.68]
[1761451163796,2.3649831,192.93,192.84,2.68]
[1761451164096,3.89669423,192.92,192.84,2.68]
[1761451164396,3.89669423,192.91,192.84,2.68]
[1761451164592,3.89669423,192.9,192.84,2.68]